fUST/lending_fUST_20251030
["ID","MTS","AMOUNT","RATE_DAILY","PERIOD"]
[392625299,1761755446543,-412.0,0.00025552,2]
[392625300,1761755446552,-168.0,0.0002558,2]
[392625301,1761755446561,-168.0,0.00025627,2]
[392625302,1761755446571,-860.0,0.00025636,2]
[392625303,1761755446580,-200.0,0.0002579,13]
[392625304,1761755446589,-20309.04,0.000258,7]
[392625305,1761755446599,-500.0,0.00025812,7]
[392625306,1761755446608,-3000.0,0.00025812,2]
[392625307,1761755446617,-500.0,0.00025829,7]
[392625308,1761755446626,-573.78,0.00025838,2]
[392625309,1761755446635,-1500.0,0.00025968,2]
[392625310,1761755446644,-1500.0,0.00025968,2]
[392625311,1761755446653,-1500.0,0.00025968,2]
[392625312,1761755446662,-1500.0,0.00025968,2]
[392625313,1761755446671,-2000.0,0.00026,2]
[392625314,1761755446680,-1658.71305776,0.00026,30]
[392625315,1761755446689,-168.0,0.0002613,2]
[392625316,1761755446698,-960.0,0.00026184,2]
[392625317,1761755446708,-168.0,0.00026293,2]
[392625318,1761755446717,-168.0,0.00026304,2]
[392625319,1761755446726,-3500.0,0.0002636,2]
[392625320,1761755446735,-1836.64555136,0.00026516,2]
[392625321,1761755446745,-2000.0,0.00026516,2]
[392625322,1761755446755,-2000.0,0.00026516,2]
[392625324,1761755446765,-613.45273052,0.00026516,2]
[392625325,1761755446774,-168.0,0.00026639,2]
[392625327,1761755446784,-500.0,0.00026667,7]
[392625328,1761755446795,-1060.0,0.00026732,2]
[392625329,1761755446804,-500.0,0.00026764,7]
[392625330,1761755446813,-500.0,0.00026789,7]
[392625331,1761755446823,-2436.54939647,0.00026908,2]
[392625332,1761755446832,-500.0,0.00026983,7]
[392625333,1761755446842,-918.0,0.00027,2]
[392625335,1761755446851,-182.337,0.00027027,15]
[392625336,1761755446861,-500.0,0.00027038,7]
[392625337,1761755446870,-500.0,0.00027064,2]
[392625338,1761755446879,-2500.0,0.00027064,2]
[392625339,1761755446888,-258.0,0.00027125,2]
[392625340,1761755446897,-1160.0,0.00027279,2]
[392625341,1761755446906,-2000.0,0.00027298,7]
[392625342,1761755446915,-500.0,0.0002735,7]
[392625343,1761755446924,-2335.89,0.00027397,2]
[392625344,1761755446934,-948.0,0.00027397,30]
[392625345,1761755446943,-150.0,0.00027397,5]
[392625346,1761755446951,-1152.0,0.00027468,2]
[392625347,1761755446960,-3671.04,0.000275,7]
[392625348,1761755446969,-500.0,0.00027507,2]
[392625349,1761755446978,-200.0,0.0002754,18]
[392625350,1761755446988,-500.0,0.00027562,2]
[392625351,1761755446998,-3000.0,0.00027612,5]
[392625352,1761755447007,-500.0,0.00027617,2]
[392625353,1761755447016,-500.0,0.00027643,7]
[392625354,1761755447025,-181.918877,0.00027643,60]
[392625355,1761755447034,-150.0,0.00027654,5]
[392625356,1761755447044,-150.0,0.00027654,5]
[392625357,1761755447053,-357.11,0.00027671,7]
[392625358,1761755447062,-582.0,0.00027671,2]
[392625359,1761755447072,-500.0,0.00027733,7]
[392625360,1761755447082,-500.0,0.00027818,7]
[392625361,1761755447091,-1260.0,0.00027827,2]
[392625362,1761755447100,-150.0,0.00027873,5]
[392625363,1761755447110,-357.11,0.00027945,8]
[392625364,1761755447119,-250.0,0.00027945,5]
[392625365,1761755447129,-157.233682,0.00028008,2]
[392625366,1761755447137,-500.0,0.00028026,7]
[392625367,1761755447147,-155.0,0.00028082,27]
[392625368,1761755447156,-500.0,0.00028119,7]
[392625369,1761755447165,-3500.0,0.0002816,5]
[392625370,1761755447175,-300.0,0.00028202,5]
[392625371,1761755447189,-250.0,0.00028202,5]
[392625372,1761755447199,-357.11,0.00028219,9]
[392625373,1761755447209,-1360.0,0.00028375,2]
[392625374,1761755447220,-20309.04,0.000284,7]
[392625375,1761755447231,-250.0,0.00028421,5]
[392625376,1761755447241,-500.0,0.00028465,7]
[392625377,1761755447251,-357.11,0.00028493,10]
[392625378,1761755447261,-350.0,0.00028493,5]
[392625379,1761755447271,-537.36,0.00028552,2]
[392625380,1761755447281,-2167.0,0.00028552,2]
[392625381,1761755447291,-633.0,0.00028552,2]
[392625382,1761755447300,-412.0,0.00028552,2]
[392625383,1761755447310,-800.0,0.00028586,7]
[392625384,1761755447320,-500.0,0.0002859,7]
[392625385,1761755447329,-4000.0,0.00028708,5]
[392625386,1761755447338,-450.0,0.0002875,5]
[392625387,1761755447348,-350.0,0.0002875,5]
[392625388,1761755447357,-357.11,0.00028767,11]
[392625389,1761755447367,-2335.89,0.00028767,4]
[392625390,1761755447376,-157.233682,0.00028866,7]
[392625391,1761755447386,-1460.0,0.00028923,2]
[392625392,1761755447395,-350.0,0.00028969,5]
[392625393,1761755447405,-357.11,0.00029041,12]
[392625394,1761755447415,-450.0,0.00029041,5]
[392625395,1761755447424,-2000.0,0.00029112,7]
[392625396,1761755447435,-285.0,0.00029125,2]
[392625397,1761755447445,-500.0,0.0002913,20]
[392625398,1761755447455,-157.233682,0.00029214,10]
[392625399,1761755447464,-4500.0,0.00029256,5]
[392625400,1761755447474,-450.0,0.00029298,5]
[392625401,1761755447484,-450.0,0.00029298,5]
[392625402,1761755447494,-357.11,0.00029315,13]
[392625403,1761755447504,-1560.0,0.00029471,2]
[392625404,1761755447517,-450.0,0.00029517,5]
[392625405,1761755447527,-860.67,0.00029529,2]
[392625406,1761755447538,-357.11,0.00029589,14]
[392625407,1761755447552,-550.0,0.00029589,5]
[392625408,1761755447563,-533.82137601,0.00029638,2]
[392625409,1761755447574,-5000.0,0.00029804,5]
[392625410,1761755447585,-550.0,0.00029846,5]
[392625411,1761755447594,-357.11,0.00029863,15]
[392625412,1761755447604,-500.0,0.00029863,5]
[392625413,1761755447613,-5696.13352655,0.000299,2]
[392625414,1761755447623,-1613.0,0.00029925,2]
[392625415,1761755447633,-23019.42230176,0.0003,20]
[392625416,1761755447658,-6977.31309609,0.0003,20]
[392625419,1761755591844,220.2,0.000181,10]
[392625420,1761755599614,310.2,0.00030137,120]
[392625424,1761755733697,1109.5,0.00030137,120]
[392625428,1761755999458,694.617987,0.00013699,2]
[392625429,1761756049714,4576.97809138,0.000181,5]
[392625522,1761756330915,4000.0,0.000175,2]
[392625523,1761756331138,-207.19721806,0.00018463,2]
[392625528,1761756404168,837.80494969,0.0002876,120]
[392625550,1761756442243,5000.0,0.000181,5]
[392625652,1761756465891,5000.0,0.000181,5]
[392625662,1761756572124,-5000.0,0.00018152,2]
[392625663,1761756572145,-150.0,0.00018194,2]
[392625664,1761756572165,-257.29924645,0.00018236,2]
[392625665,1761756572184,-629.733248,0.00018336,2]
[392625666,1761756572208,-353.1180457,0.0001839,2]
[392625667,1761756572229,-838.07702744,0.00018402,2]
[392625698,1761756632402,-3080.88928873,0.00018218,2]
[392625699,1761756632458,-1115.3481178,0.00018218,2]
[392625700,1761756632471,-803.76259347,0.00018218,2]
[392625701,1761756632481,-161.92297256,0.00018402,2]
[392625702,1761756632491,-300.0,0.00019398,2]
[392625703,1761756632501,-300.0,0.00019398,2]
[392625704,1761756632511,-300.0,0.00019398,2]
[392625705,1761756632521,-300.0,0.00019398,2]
[392625706,1761756632531,-202.0,0.00019399,2]
[392625707,1761756632542,-500.0,0.00019399,2]
[392625709,1761756632551,-426.77180729,0.00019399,2]
[392625711,1761756632566,-500.0,0.00019399,2]
[392625713,1761756632575,-500.0,0.00019399,2]
[392625715,1761756632585,-592.45505308,0.00019399,2]
[392625717,1761756632594,-500.0,0.00019399,2]
[392625719,1761756632606,-500.0,0.00019399,2]
[392625723,1761756632616,-500.0,0.00019399,2]
[392625725,1761756632627,-500.0,0.00019399,2]
[392625727,1761756632636,-500.0,0.00019399,2]
[392625730,1761756632646,-297.19450188,0.00019399,2]
[392625733,1761756632656,-31394.21835687,0.000194,2]
[392625737,1761756632667,-151.0,0.000194,2]
[392625740,1761756632677,-151.0,0.000194,2]
[392625742,1761756632687,-151.0,0.000194,2]
[392625744,1761756632697,-151.0,0.000194,2]
[392625746,1761756632706,-151.0,0.000194,2]
[392625748,1761756632716,-151.0,0.000194,2]
[392625750,1761756632725,-151.0,0.000194,2]
[392625752,1761756632734,-151.0,0.000194,2]
[392625753,1761756632743,-151.0,0.000194,2]
[392625755,1761756632752,-151.0,0.000194,2]
[392625757,1761756632762,-151.0,0.000194,2]
[392625759,1761756632771,-151.0,0.000194,2]
[392625761,1761756632781,-151.0,0.000194,2]
[392625763,1761756632790,-151.0,0.000194,2]
[392625766,1761756632800,-151.0,0.000194,2]
[392625767,1761756632810,-151.0,0.000194,2]
[392625770,1761756632820,-151.0,0.000194,2]
[392625772,1761756632829,-151.0,0.000194,2]
[392625774,1761756632839,-151.0,0.000194,2]
[392625776,1761756632857,-151.0,0.000194,2]
[392625779,1761756632869,-155.2297848,0.00019411,2]
[392625781,1761756632879,-500.0,0.00019411,2]
[392625783,1761756632890,-500.0,0.00019411,2]
[392625785,1761756632901,-500.0,0.00019411,2]
[392625787,1761756632910,-500.0,0.00019411,2]
[392625789,1761756632922,-500.0,0.00019411,2]
[392625791,1761756632932,-500.13507558,0.00019411,2]
[392625793,1761756632942,-500.0,0.00019411,2]
[392625795,1761756632951,-500.0,0.00019411,2]
[392625797,1761756632961,-516.43657533,0.00019411,2]
[392625799,1761756632971,-461.1133534,0.00019411,2]
[392625801,1761756632981,-2768.87257774,0.00019412,2]
[392625804,1761756632998,-1017.90391207,0.00019412,2]
[392625806,1761756633010,-4580.54187127,0.00019412,2]
[392626033,1761756638335,-1238.2789946,0.00019403,2]
[392626034,1761756638347,-337.4432165,0.00019403,2]
[392626035,1761756638357,-1685.16352911,0.00019412,2]
[392626036,1761756638388,-4717.75764161,0.00019412,2]
[392626037,1761756638399,-438.41934811,0.00019412,2]
[392626038,1761756638411,-1011.7194644,0.00019412,2]
[392626039,1761756638423,-579.29207325,0.00019412,2]
[392626040,1761756638435,-36597.09246845,0.00019412,2]
[392626041,1761756638446,-1299.5596011,0.00019412,2]
[392626042,1761756638457,-1133.60906219,0.00019412,2]
[392626043,1761756638470,-314170.0684507,0.00019412,2]
[392626044,1761756638480,-500.0,0.00019511,2]
[392626045,1761756638490,-500.0,0.00019511,2]
[392626046,1761756638499,-500.0,0.00019511,2]
[392626047,1761756638509,-694.617987,0.00020187,2]
[392626048,1761756638518,-177.0,0.00020194,2]
[392626049,1761756638527,-516.43657529,0.00020806,2]
[392626050,1761756638537,-420.0,0.00021135,2]
[392626051,1761756638546,-251.65279839,0.00021195,2]
[392626052,1761756638557,-838.70375872,0.00021258,2]
[392626053,1761756638568,-403.72361849,0.00021917,2]
[392626054,1761756638577,-264.98,0.00022143,2]
[392626055,1761756638586,-204.0,0.00022194,2]
[392626056,1761756638596,-15373.99,0.000222,7]
[392626057,1761756638606,-403.72361849,0.000222,7]
[392626058,1761756638616,-516.43657529,0.00022202,2]
[392626059,1761756638625,-5856.51,0.00023,3]
[392626060,1761756638635,-587.0,0.00023028,2]
[392626061,1761756638644,-2167.0,0.00023443,2]
[392626062,1761756638850,-633.0,0.00023443,2]
[392626063,1761756638860,-160.0,0.000235,2]
[392626064,1761756638870,-516.43657529,0.00023597,2]
[392626065,1761756638880,-2000.0,0.00023765,7]
[392626066,1761756638890,-260.0,0.00024048,2]
[392626067,1761756638899,-231.0,0.00024194,2]
[392626068,1761756638909,-161.0,0.00024274,12]
[392626069,1761756638919,-500.0,0.0002444,9]
[392626070,1761756638928,-360.0,0.00024596,2]
[392626071,1761756638937,-23426.04,0.000246,3]
[392626072,1761756638947,-461.11335339,0.00024656,2]
[392626073,1761756638957,-380.0,0.00024658,2]
[392626074,1761756638967,-200.0,0.00024658,15]
[392626075,1761756638976,-236.06423362,0.00024706,2]
[392626076,1761756638986,-500.0,0.00024873,2]
[392626077,1761756638997,-500.0,0.00024873,2]
[392626078,1761756639006,-841139.906593,0.000249,2]
[392626079,1761756639016,-516.43657529,0.00024992,2]
[392626080,1761756639025,-209.0,0.00025,30]
[392626081,1761756639035,-823.0,0.00025091,2]
[392626082,1761756639044,-460.0,0.00025144,2]
[392626083,1761756639054,-1000.0,0.00025421,2]
[392626084,1761756639063,-166.86331151,0.00025447,3]
[392626085,1761756639073,-418.19620068,0.00025692,2]
[392626086,1761756639082,-1005.60458236,0.00025751,2]
[392626087,1761756639091,-3351.46021983,0.00025817,2]
[392626088,1761756639101,-529.96,0.00025833,2]
[392626089,1761756639111,-168.0,0.00025856,2]
[392626090,1761756639121,-1500.0,0.00025968,2]
[392626091,1761756639131,-168.0,0.00026058,2]
[392626092,1761756639140,-258.0,0.00026194,2]
[392626093,1761756639151,-15373.99,0.000262,7]
[392626094,1761756639162,-168.0,0.00026255,2]
[392626095,1761756639172,-168.0,0.00026266,2]
[392626096,1761756639182,-2167.0,0.00026443,2]
[392626097,1761756639193,-2000.0,0.00026516,2]
[392626098,1761756639203,-190.76100309,0.00026655,6]
[392626099,1761756639213,-694.617987,0.00026676,2]
[392626100,1761756639223,-2000.0,0.00027012,7]
[392626101,1761756639233,-2500.0,0.00027064,2]
[392626102,1761756639242,-185.0,0.00027338,2]
[392626103,1761756639252,-1000.0,0.00027397,7]
[392626104,1761756639262,-2141.23,0.00027397,2]
[392626105,1761756639272,-150.0,0.00027397,5]
[392626106,1761756639282,-397.6715387,0.00027464,2]
[392626107,1761756639291,-629.733248,0.00027503,2]
[392626108,1761756639301,-182.337,0.00027534,16]
[392626109,1761756639310,-1428.74997468,0.00027612,5]
[392626110,1761756639320,-1000.0,0.00027671,7]
[392626111,1761756639329,-231.48,0.00027671,7]
[392626112,1761756639338,-216.43282035,0.00027863,8]
[392626113,1761756639347,-1000.0,0.00027945,7]
[392626114,1761756639357,-231.48,0.00027945,8]
[392626115,1761756639367,-250.0,0.00027945,5]
[392626116,1761756639376,-250.0,0.00028,7]
[392626117,1761756639386,-285.0,0.00028194,2]
[392626118,1761756639395,-1000.0,0.00028219,7]
[392626119,1761756639404,-231.48,0.00028219,9]
[392626120,1761756639413,-1000.0,0.00028493,7]
[392626121,1761756639422,-350.0,0.00028493,5]
[392626122,1761756639432,-1000.0,0.00028767,7]
[392626123,1761756639441,-2141.23,0.00028767,4]
[392626124,1761756639450,-1000.0,0.00029041,7]
[392626125,1761756639459,-450.0,0.00029041,5]
[392626126,1761756639468,-243.76367947,0.00029072,11]
[392626127,1761756639477,-1000.0,0.00029315,7]
[392626128,1761756639486,-2167.0,0.00029443,2]
[392626129,1761756639496,-794.95,0.00029524,2]
[392626130,1761756639505,-1000.0,0.00029589,7]
[392626131,1761756639514,-550.0,0.00029589,5]
[392626132,1761756639523,-11713.02,0.000297,5]
[392626133,1761756639532,-1000.0,0.00029863,7]
[392626134,1761756639542,-500.0,0.00029863,5]
[392626135,1761756639552,-15373.99,0.000299,7]
[392626136,1761756639565,-5126.52017385,0.000299,2]
[392626137,1761756639575,-461.11335339,0.000299,2]
[392626138,1761756639584,-150.0,0.00029973,5]
[392626139,1761756639593,-92045.96650224,0.0003,20]
[392626146,1761756640545,-231.48,0.00028493,10]
[392626148,1761756640556,-128.51275684,0.00028767,11]
[392626179,1761756643648,-102.96724316,0.00028767,11]
[392626180,1761756643658,-231.48,0.00029041,12]
[392626181,1761756643667,-231.48,0.00029315,13]
[392626182,1761756643677,-231.48,0.00029589,14]
[392626183,1761756643686,-231.48,0.00029863,15]
[392626185,1761756643695,-1420.42477335,0.0003,20]
[392626186,1761756643749,-95838.31771564,0.0003,20]
[392626187,1761756643760,-584.35532988,0.0003,20]
[392626200,1761756648375,-3939.46,0.0002999,10]
[392626201,1761756648385,-393680.46387716,0.0003,20]
[392626202,1761756648394,-2916.0,0.0003,20]
[392626203,1761756648403,-148703.61429056,0.0003,20]
[392626204,1761756648504,-342.53,0.0003,20]
[392626205,1761756648525,-20088.23704879,0.0003,20]
[392626234,1761756946107,-5000.0,0.00019018,5]
[392626235,1761756946141,-0.01,0.00019114,2]
[392626236,1761756946329,-149.99,0.00019114,2]
[392626237,1761756946357,-835.0,0.00019309,2]
[392626238,1761756946386,-799.0,0.0001931,2]
[392626239,1761756946414,-300.0,0.0001931,2]
[392626240,1761756946444,-300.0,0.0001931,2]
[392626241,1761756946546,-5232.03,0.00019311,2]
[392626242,1761756946564,-10000.01,0.00019311,2]
[392626243,1761756946592,-10000.01,0.00019311,2]
[392626244,1761756946735,-10000.01,0.00019311,2]
[392626245,1761756946895,-3098.0517936,0.00019311,2]
[392626246,1761756946927,-165.12440546,0.00019311,2]
[392626247,1761756946956,-500.0,0.00019311,2]
[392626248,1761756946983,-500.0,0.00019311,2]
[392626249,1761756947012,-352.77644409,0.00019311,2]
[392626250,1761756947040,-268.1047137,0.00019311,2]
[392626251,1761756947146,-231.8952863,0.00019311,2]
[392626252,1761756947175,-500.0,0.00019311,2]
[392626253,1761756947206,-500.0,0.00019311,2]
[392626254,1761756947235,-500.0,0.00019311,2]
[392626255,1761756947451,-500.0,0.00019311,2]
[392626256,1761756947481,-500.0,0.00019311,2]
[392626257,1761756947510,-500.0,0.00019311,2]
[392626258,1761756947541,-500.0,0.00019311,2]
[392626259,1761756947569,-619.71576084,0.00019311,2]
[392626260,1761756947597,-500.0,0.00019311,2]
[392626261,1761756947704,-500.0,0.00019311,2]
[392626262,1761756947734,-500.0,0.00019311,2]
[392626263,1761756947761,-401.31344262,0.00019311,2]
[392626264,1761756947792,-500.0,0.00019311,2]
[392626265,1761756947822,-500.0,0.00019311,2]
[392626266,1761756947852,-500.0,0.00019311,2]
[392626267,1761756947882,-500.0,0.00019311,2]
[392626268,1761756947911,-500.0,0.00019311,2]
[392626269,1761756947940,-382.60690492,0.00019311,2]
[392626270,1761756947971,-500.0,0.00019311,2]
[392626271,1761756948001,-173.81726447,0.00019311,2]
[392626272,1761756948090,-500.0,0.00019311,2]
[392626273,1761756948119,-635.19796535,0.00019311,2]
[392626274,1761756948148,-500.0,0.00019311,2]
[392626275,1761756948173,-166.67,0.00019311,2]
[392626291,1761757191048,156.0,8.3e-07,2]
[392626292,1761757192083,156.0,8.3e-07,2]
[392626293,1761757193225,156.0,8.3e-07,2]
[392626294,1761757194857,156.0,8.3e-07,2]
[392626295,1761757195974,156.0,8.3e-07,2]
[392626296,1761757197013,156.0,8.3e-07,2]
[392626360,1761757625146,-2486.85216425,0.00017961,2]
[392626366,1761757629138,-281.46934062,0.00017961,2]
[392626372,1761757640076,-165.46393467,0.00017961,2]
[392626373,1761757651083,-1097.21475319,0.00017961,2]
[392626374,1761757651112,-284.82742722,0.00017961,2]
[392626375,1761757680401,222.15,0.00016234,2]
[392626381,1761757748159,-684.17238005,0.00017961,2]
[392626382,1761757748180,-347.26610319,0.00018042,3]
[392626383,1761757748202,-150.0,0.00018143,2]
[392626384,1761757748221,-175.136457,0.00018152,2]
[392626385,1761757748243,-909.98939915,0.00018376,2]
[392626386,1761757768707,170.019357,0.00030137,120]
[392626414,1761757832765,-2633.19839508,0.00018192,2]
[392626415,1761757832776,-2366.80160492,0.00018192,2]
[392626416,1761757832786,-89.01060085,0.00018376,2]
[392626417,1761757832795,-205.79867159,0.00019212,2]
[392626418,1761757832804,-300.0,0.00019271,2]
[392626419,1761757832813,-300.0,0.00019271,2]
[392626420,1761757832822,-332.0,0.00019272,2]
[392626421,1761757832830,-300.0,0.00019272,2]
[392626422,1761757832841,-300.0,0.00019272,2]
[392626423,1761757832850,-300.0,0.00019272,2]
[392626424,1761757832859,-4.30180734,0.00019273,2]
[392626425,1761757832889,-457.43859755,0.00019273,2]
[392626426,1761757832898,-2612.10847689,0.00019273,2]
[392626427,1761757832907,-151.0,0.000193,2]
[392626428,1761757832916,-151.0,0.000193,2]
[392626429,1761757832925,-151.0,0.000193,2]
[392626430,1761757832933,-151.0,0.000193,2]
[392626431,1761757832943,-151.0,0.000193,2]
[392626432,1761757832954,-151.0,0.000193,2]
[392626433,1761757832965,-151.0,0.000193,2]
[392626434,1761757832975,-151.0,0.000193,2]
[392626435,1761757832984,-151.0,0.000193,2]
[392626436,1761757832995,-151.0,0.000193,2]
[392626438,1761757833005,-151.0,0.000193,2]
[392626439,1761757833014,-151.0,0.000193,2]
[392626441,1761757833024,-151.0,0.000193,2]
[392626443,1761757833035,-151.0,0.000193,2]
[392626445,1761757833044,-151.0,0.000193,2]
[392626447,1761757833054,-151.0,0.000193,2]
[392626449,1761757833063,-151.0,0.000193,2]
[392626451,1761757833073,-151.0,0.000193,2]
[392626453,1761757833082,-151.0,0.000193,2]
[392626455,1761757833092,-151.0,0.000193,2]
[392626457,1761757833101,-500.0,0.00019311,2]
[392626459,1761757833111,-500.0,0.00019311,2]
[392626461,1761757833120,-500.0,0.00019311,2]
[392626463,1761757833130,-500.0,0.00019311,2]
[392626465,1761757833139,-500.0,0.00019311,2]
[392626467,1761757833148,-500.0,0.00019311,2]
[392626469,1761757833158,-500.0,0.00019311,2]
[392626471,1761757833167,-543.64601407,0.00019311,2]
[392626473,1761757833176,-6649.63671804,0.00019312,2]
[392626475,1761757833188,-6657.44301447,0.00019312,2]
[392626546,1761757838637,-30591.09915552,0.00019312,2]
[392626548,1761757838649,-607.05199346,0.00019312,2]
[392626550,1761757838661,-12839.8087212,0.00019312,2]
[392626554,1761757838692,-7947.2,0.00019312,2]
[392626592,1761757840738,-104.45201009,0.00019312,2]
[392626593,1761757840749,-3436.19562442,0.00019312,2]
[392626605,1761757843772,-34997.75172824,0.00019312,2]
[392626606,1761757843829,-50158.52447976,0.00019312,2]
[392626619,1761757846612,-1889.123969,0.00019312,2]
[392626653,1761758328544,-5000.0,0.00018735,2]
[392626654,1761758328589,-0.01,0.0001902,2]
[392626655,1761758329072,-149.99,0.0001902,2]
[392626656,1761758329100,-2089.68678152,0.00019115,2]
[392626657,1761758329131,-300.0,0.0001921,2]
[392626658,1761758329161,-500.0,0.00019211,2]
[392626659,1761758329190,-500.0,0.00019211,2]
[392626660,1761758329221,-500.0,0.00019211,2]
[392626661,1761758329248,-496.94351086,0.00019211,2]
[392626662,1761758329277,-457.74619565,0.00019211,2]
[392626663,1761758329450,-11.27702394,0.00019211,2]
[392626664,1761758330946,-337.07830554,0.00019211,2]
[392626665,1761758331073,435.58328042,0.00019173,2]
[392626666,1761758331421,5000.0,0.00018548,2]
[392626668,1761758465963,-5000.0,0.00019019,2]
[392626669,1761758472084,-1671.7494252,0.00019173,2]
[392626670,1761758472113,-300.0,0.00019201,2]
[392626671,1761758472140,-417.21,0.00019202,3]
[392626672,1761758472170,-208.61,0.00019202,3]
[392626673,1761758472198,-625.83,0.00019202,3]
[392626674,1761758472226,-300.0,0.0001921,2]
[392626675,1761758472256,-500.0,0.00019211,2]
[392626676,1761758472286,-500.0,0.00019211,2]
[392626677,1761758472315,-159.79753545,0.00019211,2]
[392626678,1761758472345,-133.6160787,0.00019211,2]
[392626680,1761758555600,1092.0,0.0003013,120]
[392626681,1761758580535,-289.43764149,0.00018829,2]
[392626682,1761758580558,-493.36329302,0.00019019,2]
[392626683,1761758582204,-156.28004583,0.00019019,2]
[392626684,1761758602838,-20.86045496,0.00019019,2]
[392626685,1761758602867,-337.09,0.00019202,3]
[392626686,1761758602896,-168.55,0.00019202,3]
[392626687,1761758602926,-505.67,0.00019202,3]
[392626688,1761758602953,-542.88,0.00019202,3]
[392626689,1761758602982,-150.0,0.00019206,2]
[392626690,1761758603010,-300.0,0.0001921,2]
[392626691,1761758603041,-366.3839213,0.00019211,2]
[392626692,1761758603070,-458.68635728,0.00019211,2]
[392626693,1761758603100,-500.0,0.00019211,2]
[392626694,1761758603129,-500.0,0.00019211,2]
[392626695,1761758603157,-500.0,0.00019211,2]
[392626696,1761758603185,-500.0,0.00019211,2]
[392626697,1761758608771,-500.0,0.00019211,2]
[392626698,1761758608957,-202.63636569,0.00019211,2]
[392626699,1761758608986,-500.0,0.00019211,2]
[392626700,1761758609015,-500.0,0.00019211,2]
[392626701,1761758609043,-500.0,0.00019211,2]
[392626702,1761758609073,-500.0,0.00019211,2]
[392626703,1761758609102,-500.0,0.00019211,2]
[392626704,1761758609132,-500.0,0.00019211,2]
[392626705,1761758609161,-500.0,0.00019211,2]
[392626706,1761758609190,-500.0,0.00019211,2]
[392626707,1761758609222,-94.73726862,0.00019211,2]
[392626708,1761758611752,-405.26273138,0.00019211,2]
[392626709,1761758611780,-156.75534788,0.00019211,2]
[392626710,1761758611810,-500.0,0.00019211,2]
[392626711,1761758611840,-500.0,0.00019211,2]
[392626712,1761758611869,-500.0,0.00019211,2]
[392626713,1761758611897,-500.0,0.00019211,2]
[392626714,1761758611926,-298.08897321,0.00019211,2]
[392626715,1761758611956,-500.0,0.00019211,2]
[392626716,1761758611986,-448.9260587,0.00019211,2]
[392626717,1761758612014,-220.06714615,0.00019211,2]
[392626718,1761758612042,-201.91102678,0.00019211,2]
[392626719,1761758612071,-500.0,0.00019211,2]
[392626720,1761758612098,-37.9874318,0.00019211,2]
[392626721,1761758615200,-171.5412445,0.00019084,2]
[392626722,1761758615232,-462.0125682,0.00019211,2]
[392626723,1761758615262,-166.67,0.00019211,2]
[392626724,1761758615294,-151.0,0.00019212,2]
[392626725,1761758615323,-151.0,0.00019212,2]
[392626726,1761758615350,-151.0,0.00019212,2]
[392626727,1761758615377,-151.0,0.00019212,2]
[392626728,1761758615404,-151.0,0.00019212,2]
[392626729,1761758615431,-151.0,0.00019212,2]
[392626730,1761758615467,-151.0,0.00019212,2]
[392626731,1761758615501,-151.0,0.00019212,2]
[392626732,1761758615533,-151.0,0.00019212,2]
[392626733,1761758615561,-151.0,0.00019212,2]